bitfinex/quotes_ETHUSD_20240714
["timestamp","ask_amount","ask_price","bid_price","bid_amount"]
[1720936652575,3.11575,3209.5,3209.0,7.42]
[1720936654154,3.11586,3209.4,3208.5,3.11671]
[1720936654483,6.23179,3209.4,3208.5,3.11671]
[1720936654984,3.11586,3209.4,3208.6,3.1166]
[1720936657275,3.11565,3209.6,3208.6,3.1166]
[1720936657776,3.11575,3209.5,3208.7,3.11651]
[1720936661150,3.44178209,3209.7,3208.9,3.11632]
[1720936661480,3.44178209,3209.7,3209.0,2.3785]
[1720936661863,0.32623209,3209.7,3209.0,2.3785]
[1720936662183,0.32623209,3209.7,3209.1,3.11611]
[1720936662884,1.07945883,3209.6,3209.1,3.11611]
[1720936663074,0.32623209,3209.7,3209.1,3.11611]
[1720936663275,1.07945553,3209.6,3209.1,3.11611]
[1720936663491,0.32623209,3209.7,3209.1,3.11611]
[1720936663783,1.07943295,3209.6,3209.1,3.11611]
[1720936663991,0.32623209,3209.7,3209.1,3.11611]
[1720936664153,1.07943423,3209.6,3209.1,3.11611]
[1720936664348,0.32623209,3209.7,3209.1,3.11611]
[1720936664558,1.07943448,3209.6,3209.1,3.11611]
[1720936664767,0.32623209,3209.7,3209.1,3.11611]
[1720936664982,1.07941926,3209.6,3209.1,3.11611]
[1720936665182,0.32623209,3209.7,3209.1,3.11611]
[1720936665389,1.07943152,3209.6,3209.1,3.11611]
[1720936665593,0.32623209,3209.7,3209.1,3.11611]
[1720936665751,1.07943016,3209.6,3209.1,3.11611]
[1720936665956,0.32623209,3209.7,3209.1,3.11611]
[1720936666173,1.07942307,3209.6,3209.1,3.11611]
[1720936666382,0.32623209,3209.7,3209.1,3.11611]
[1720936666578,1.07942848,3209.6,3209.1,3.11611]
[1720936666856,0.32623209,3209.7,3209.1,3.11611]
[1720936667053,1.07942895,3209.6,3209.1,3.11611]
[1720936667253,0.32623209,3209.7,3209.1,3.11611]
[1720936667483,1.07943033,3209.6,3209.1,3.11611]
[1720936667700,0.32623209,3209.7,3209.1,3.11611]
[1720936667986,1.07943044,3209.6,3209.1,3.11611]
[1720936668201,0.32623209,3209.7,3209.0,5.49464]
[1720936668361,1.0794305,3209.5,3209.0,5.49464]
[1720936668566,0.34417221,3209.6,3209.0,5.49464]
[1720936668778,1.07945512,3209.5,3209.1,3.11613]
[1720936669011,0.34417221,3209.6,3209.1,3.11613]
[1720936669300,1.07945428,3209.5,3209.1,3.11613]
[1720936669467,1.07945428,3209.4,3209.1,3.11613]
[1720936669676,1.07945428,3209.5,3209.1,3.11613]
[1720936669880,1.07945428,3209.4,3209.1,3.11613]
[1720936670062,0.34417221,3209.6,3209.0,2.3785]
[1720936670269,1.07945982,3209.5,3208.8,3.11642]
[1720936670469,1.07945982,3209.4,3208.8,3.11642]
[1720936670706,1.07945982,3209.5,3208.8,3.11642]
[1720936670869,1.07945982,3209.4,3208.8,3.11642]
[1720936671069,1.07945982,3209.5,3208.8,3.11642]
[1720936671291,1.07945982,3209.4,3208.8,3.11642]
[1720936671819,1.07948689,3209.3,3208.8,3.11642]
[1720936671970,1.07948689,3209.2,3208.8,3.11642]
[1720936672307,1.07948689,3209.1,3208.8,3.11642]
[1720936672517,1.07949071,3209.4,3208.8,3.11642]
[1720936672803,1.07948906,3209.3,3208.8,3.11642]
[1720936673009,1.07948906,3209.2,3208.8,3.11642]
[1720936673182,1.07948906,3209.3,3208.8,3.11642]
[1720936674277,1.07948906,3209.3,3208.7,7.42]
[1720936674592,1.64163268,3209.3,3208.7,7.42]
[1720936674803,1.07948906,3209.2,3208.7,10.53652]
[1720936675113,0.56214362,3209.3,3208.7,10.53652]
[1720936675403,1.07952315,3209.1,3208.7,10.53652]
[1720936675607,1.07952315,3209.0,3208.7,10.53652]
[1720936675808,1.07952315,3209.2,3208.7,3.11652]
[1720936676116,1.07952315,3209.1,3208.7,3.11652]
[1720936676327,1.07952315,3209.2,3208.7,3.11652]
[1720936678166,1.07952315,3209.2,3208.6,2.3272]
[1720936678373,1.07952315,3209.4,3208.9,2.3272]
[1720936678685,1.07948451,3209.3,3209.0,3.11621]
[1720936678872,1.07948451,3209.2,3209.0,3.11621]
[1720936679073,1.07948451,3209.1,3209.0,3.11621]
[1720936679875,1.07948451,3209.1,3209.0,3.972192]
[1720936681015,3.44179209,3209.7,3209.0,3.972192]
[1720936681172,1.07945742,3209.6,3209.0,3.11621]
[1720936681379,1.07946604,3209.5,3209.0,3.11621]
[1720936681683,1.07946557,3209.4,3208.9,2.3272]
[1720936681878,1.07946557,3209.3,3208.9,3.11631]
[1720936682083,1.07946557,3209.2,3208.9,3.11631]
[1720936682284,1.07946557,3209.1,3208.9,3.11631]
[1720936682475,1.07946557,3209.0,3208.9,3.11631]
[1720936682797,1.07946557,3209.0,3208.9,6.212186]
[1720936683416,1.07946557,3209.0,3208.9,2.4726]
[1720936684315,3.44184209,3209.7,3208.9,2.4726]
[1720936684617,4.19506663,3209.6,3208.9,5.58891]
[1720936684790,1.07941663,3209.5,3208.9,5.58891]
[1720936684987,1.07941663,3209.5,3209.0,3.11621]
[1720936685189,1.07941663,3209.6,3208.9,3.343139]
[1720936685398,1.07941663,3209.5,3209.3,2.4726]
[1720936685599,1.07941663,3209.4,3209.3,2.4726]
[1720936686074,1.07941663,3209.4,3209.3,5.58854]
[1720936686271,0.32623209,3209.7,3209.3,5.58854]
[1720936686475,1.07939483,3209.6,3209.3,5.58854]
[1720936687616,0.32623209,3209.7,3209.3,2.4726]
[1720936687804,1.07940957,3209.6,3209.3,2.4726]
[1720936687978,0.32623209,3209.7,3209.3,2.4726]
[1720936687979,1.07940957,3209.5,3209.3,2.4726]
[1720936688175,1.07940957,3209.4,3209.3,2.4726]
[1720936688597,1.07940957,3209.4,3209.3,5.58854]
[1720936689594,1.07940957,3209.4,3209.3,2.4726]
[1720936690215,1.07940957,3209.4,3209.3,5.58854]
[1720936690915,0.32623209,3209.7,3209.3,5.58854]
[1720936691115,1.07934338,3209.4,3209.3,5.58854]
[1720936691511,1.07936937,3209.4,3209.3,5.58854]
[1720936694184,3.11533,3210.0,3209.3,5.58854]
[1720936694417,0.311533,3209.9,3209.3,5.58854]
[1720936694606,1.39087661,3209.9,3209.3,5.58854]
[1720936694922,1.07934361,3209.8,3209.3,5.58854]
[1720936695117,1.07934361,3209.7,3209.3,5.58854]
[1720936695426,1.07934361,3209.6,3209.3,5.58854]
[1720936695722,1.07934361,3209.5,3209.3,5.58854]
[1720936695918,1.07934361,3209.4,3209.3,5.58854]
[1720936697632,1.07935441,3209.4,3209.3,5.58854]
[1720936701073,1.07933446,3209.4,3209.3,5.58854]
[1720936702059,1.07933446,3209.4,3209.3,6.458994]
[1720936702240,0.32624924,3210.2,3209.7,3.11548]
[1720936702450,1.07922855,3210.1,3209.9,3.11536]
[1720936702763,1.07922855,3210.0,3209.9,3.11536]
[1720936704557,1.07922855,3210.0,3209.9,5.39986]
[1720936704862,0.32624459,3210.6,3210.1,3.11515]
[1720936705074,1.07913638,3210.5,3209.9,5.39986]
[1720936705367,1.07913638,3210.4,3210.0,3.11526]
[1720936707456,0.32624459,3210.6,3210.0,3.11526]
[1720936707645,1.07915261,3210.5,3210.0,3.11526]
[1720936707980,1.07915261,3210.4,3210.0,3.11526]
[1720936708160,1.07915261,3210.3,3210.0,3.11526]
[1720936708346,1.07915261,3210.2,3210.0,3.11526]
[1720936708549,1.07915261,3210.4,3210.1,3.11516]
[1720936708759,1.0791233,3210.3,3210.1,3.11516]
[1720936708963,1.0791233,3210.2,3210.1,3.11516]
[1720936709164,0.785,3210.5,3210.1,3.11516]
[1720936709341,1.07912811,3210.4,3210.1,3.11516]
[1720936709657,1.07912811,3210.3,3210.1,3.11516]
[1720936709860,1.07912811,3210.2,3210.1,3.11516]
[1720936710769,0.785,3210.5,3210.1,3.11516]
[1720936711101,1.07909117,3210.4,3210.1,3.11516]
[1720936711381,1.07909117,3210.3,3210.1,3.11516]
[1720936711583,1.07909117,3210.2,3210.1,3.11516]
[1720936712066,1.07909117,3210.2,3209.9,5.39983]
[1720936712373,1.07909117,3210.1,3210.0,3.11526]
[1720936712539,1.07909117,3210.4,3210.0,3.11526]
[1720936712879,1.07909117,3210.4,3210.1,3.11516]
[1720936714145,0.785,3210.5,3210.1,3.11516]
[1720936714335,1.07913916,3210.3,3210.1,3.11516]
[1720936714541,1.07913916,3210.2,3210.1,3.11516]
[1720936715239,1.07913916,3210.2,3210.1,3.966661]
[1720936715439,1.07913916,3210.2,3210.1,7.081821]
[1720936715644,0.32624459,3210.6,3210.5,3.11477]
[1720936715939,0.32624459,3210.6,3210.5,5.39927]
[1720936716387,1.07894951,3210.6,3210.5,5.39927]
[1720936716680,1.07894951,3211.0,3210.5,5.39927]
[1720936716985,0.785,3210.9,3210.5,5.39927]
[1720936717143,1.07894951,3210.8,3210.5,5.39927]
[1720936717480,0.785,3210.9,3210.5,5.39927]
[1720936717654,1.0789909,3210.7,3210.4,3.11487]
[1720936717852,0.785,3210.9,3210.4,3.11487]
[1720936718065,1.0789923,3210.8,3210.4,3.11487]
[1720936718268,1.0789923,3210.7,3210.4,3.11487]
[1720936718471,1.0789923,3210.6,3210.4,3.11487]
[1720936718672,1.0789923,3210.5,3210.4,3.11487]
[1720936719763,1.0789923,3210.5,3210.3,3.11496]
[1720936719982,0.785,3210.9,3210.3,3.11496]
[1720936720298,1.0790015,3210.8,3210.2,2.2845]
[1720936720502,1.0790015,3210.7,3210.2,5.39956]
[1720936720721,1.174919,3210.9,3210.2,5.39956]
[1720936720996,1.0790199,3210.8,3210.2,5.39956]
[1720936721194,3.11436,3211.0,3210.2,5.39956]
[1720936721195,1.0790199,3210.7,3210.2,5.39956]
[1720936721383,1.0790199,3210.6,3210.2,5.39956]
[1720936721559,1.0790199,3210.5,3210.2,5.39956]
[1720936721752,0.785,3210.9,3210.2,5.39956]
[1720936721998,1.07898651,3210.8,3210.2,5.39956]
[1720936722158,1.07898651,3210.7,3210.2,5.39956]
[1720936722355,1.07898651,3210.8,3210.2,2.2845]
[1720936722563,1.86398651,3210.7,3210.1,6.11514]
[1720936722763,1.07898651,3210.6,3210.1,6.11514]
[1720936722985,1.07898651,3210.5,3210.1,6.11514]
[1720936723185,1.07898651,3210.8,3210.1,6.11514]
[1720936723361,1.07898651,3210.7,3210.2,3.11506]
[1720936723580,1.07898651,3210.8,3210.2,3.11506]
[1720936723908,1.07898651,3210.7,3210.2,3.11506]
[1720936724205,3.89939,3210.9,3210.2,3.11506]
[1720936724497,1.07901376,3210.8,3210.2,3.11506]
[1720936724695,1.07901376,3210.7,3210.2,4.268975]
[1720936724899,1.07901376,3210.6,3210.2,3.11506]
[1720936725078,1.07901376,3210.5,3210.2,3.11506]
[1720936725274,1.07901376,3210.4,3210.2,3.11506]
[1720936725597,3.89939,3210.9,3210.2,3.11506]
[1720936725797,1.07902803,3210.8,3210.2,3.11506]
[1720936726003,1.07902803,3210.7,3210.2,3.11506]
[1720936727418,0.785,3210.8,3210.2,3.11506]
[1720936727620,1.07903923,3210.7,3210.2,3.11506]
[1720936728009,1.07903866,3210.6,3210.2,3.11506]
[1720936728222,1.07903866,3210.5,3210.2,3.11506]
[1720936728520,1.07903866,3210.4,3210.2,3.11506]
[1720936728723,0.785,3210.8,3210.2,3.11506]
[1720936728896,1.07903708,3210.7,3210.2,3.11506]
[1720936729097,1.07903708,3210.6,3210.2,3.11506]
[1720936729421,1.07903708,3210.5,3210.2,3.11506]
[1720936729619,1.07903708,3210.7,3210.2,3.11506]
[1720936730783,1.07903271,3210.6,3210.2,3.11506]
[1720936730983,1.07903271,3210.5,3210.2,3.11506]
[1720936731183,1.07903271,3210.4,3210.2,3.11506]
[1720936731415,1.07903271,3210.7,3210.2,3.11506]
[1720936731636,1.07903271,3210.6,3210.2,3.11506]
[1720936731814,1.07903271,3210.5,3210.2,4.268975]
[1720936732125,1.86403271,3210.4,3210.0,2.3089]
[1720936732342,1.07903271,3210.3,3209.7,12.84444]
[1720936732890,1.07903271,3210.3,3209.7,5.42444]
[1720936734232,1.07917787,3210.2,3209.7,5.42444]
[1720936734432,1.07917787,3210.1,3209.7,5.42444]
[1720936734649,1.07917787,3210.0,3209.7,5.42444]
[1720936734942,1.07917787,3209.9,3209.7,5.42444]
[1720936735120,1.07917787,3210.3,3209.7,6.278458]
[1720936735449,1.07917787,3210.2,3209.7,5.42444]
[1720936735645,1.07917787,3210.3,3209.7,5.42444]
[1720936735844,1.07917787,3210.2,3209.7,5.42444]
[1720936736047,1.07917787,3210.1,3209.8,3.1154]
[1720936736409,1.07917787,3210.0,3209.8,3.1154]
[1720936736608,1.07917787,3209.9,3209.8,3.1154]
[1720936737045,1.07917787,3209.9,3209.7,2.3089]
[1720936737252,1.07917787,3209.8,3209.7,5.42444]
[1720936737446,0.785,3210.4,3209.7,5.42444]
[1720936737748,1.46914492,3210.3,3209.7,5.42444]
[1720936737951,0.785,3210.4,3209.7,5.42444]
[1720936738120,1.079174,3210.3,3209.8,3.11545]
[1720936738440,1.079174,3210.2,3209.8,3.11545]
[1720936738621,1.079174,3210.1,3209.8,3.11545]
[1720936738824,1.079174,3210.0,3209.8,3.11545]
[1720936739033,1.079174,3209.9,3209.8,3.11545]
[1720936740648,0.785,3210.4,3209.8,3.11545]
[1720936740830,1.0791637,3209.9,3209.8,3.11545]
[1720936741240,1.0791637,3210.3,3209.7,2.3089]
[1720936741414,1.0791637,3210.2,3209.7,2.3089]
[1720936741620,1.0791637,3210.3,3209.7,2.3089]
[1720936741936,1.0791637,3210.2,3209.7,2.3089]
[1720936742140,1.0791637,3210.3,3209.7,2.3089]
[1720936742322,1.0791637,3210.3,3209.7,5.42442]
[1720936742859,1.0791637,3210.3,3209.9,3.11534]
[1720936743017,1.0791637,3210.3,3209.9,2.287]
[1720936743215,0.32629866,3210.6,3210.2,3.11498]
[1720936743461,1.07905097,3210.5,3210.3,2.287]
[1720936743661,1.07905097,3210.4,3210.3,2.287]
[1720936744456,1.07905097,3210.4,3210.0,2.287]
[1720936744653,0.32629866,3210.6,3210.0,2.287]
[1720936744654,1.07905097,3210.3,3210.0,2.287]
[1720936744818,1.07905097,3210.5,3210.0,2.287]
[1720936746259,1.07905097,3210.5,3210.0,5.40224]
[1720936746460,0.32629866,3210.6,3210.2,3.11503]
[1720936746630,1.07909758,3210.5,3210.2,3.11503]
[1720936746963,0.32629866,3210.6,3210.3,5.40197]
[1720936746964,1.07909758,3210.4,3210.3,5.40197]
[1720936749919,1.07903905,3210.4,3210.3,2.287]
[1720936750357,1.07904089,3210.4,3210.3,2.287]
[1720936750956,1.07904435,3210.7,3210.3,2.287]
[1720936751473,0.785,3210.6,3209.9,5.40235]
[1720936751676,1.07904435,3210.5,3210.0,3.11524]
[1720936752770,1.07904435,3210.5,3209.7,7.42]
[1720936752771,0.785,3210.2,3209.7,7.42]
[1720936753164,1.07916412,3210.1,3209.7,7.42]
[1720936753470,1.07916412,3210.0,3209.7,7.42]
[1720936753644,0.785,3210.3,3209.7,7.42]
[1720936753977,1.07916412,3210.2,3209.7,7.42]
[1720936754849,1.07916412,3210.2,3209.7,10.53555]
[1720936755260,1.07916412,3210.2,3209.7,12.129379]
[1720936756246,1.07916412,3210.2,3209.9,3.11535]
[1720936756447,0.785,3210.3,3210.0,2.287]
[1720936756653,1.07913385,3210.2,3210.0,2.287]
[1720936756962,1.07913385,3210.1,3210.0,2.287]
[1720936757157,1.07913385,3210.2,3210.0,2.287]
[1720936758349,0.785,3210.5,3210.0,2.287]
[1720936758350,1.07913385,3210.4,3210.0,2.287]
[1720936758554,1.07913385,3210.3,3210.0,5.40225]
[1720936758878,1.07913385,3210.2,3210.0,5.40225]
[1720936759066,1.07913385,3210.4,3210.0,5.40225]
[1720936759264,1.07913385,3210.3,3210.0,5.40225]
[1720936759574,1.07913385,3210.2,3210.0,2.287]
[1720936759788,3.30099443,3210.7,3209.7,12.82252]
[1720936759789,1.86417614,3210.1,3209.7,12.82252]
[1720936759939,0.785,3210.3,3209.7,12.82252]
[1720936760443,1.07917092,3210.2,3209.7,12.82252]
[1720936760639,1.07917092,3210.1,3209.7,12.82252]
[1720936760838,1.07917092,3210.2,3209.7,12.82252]
[1720936762484,1.07917092,3210.2,3209.7,5.40252]
[1720936763144,0.785,3210.3,3209.7,5.40252]
[1720936763345,1.0791945,3210.1,3209.7,5.40252]
[1720936763542,1.0791945,3210.0,3209.7,5.40252]
[1720936763748,1.0791945,3209.9,3209.7,5.40252]
[1720936763976,1.0791945,3209.8,3209.7,6.254346]
[1720936764479,1.0791945,3210.2,3209.7,6.254346]
[1720936764656,1.0791945,3210.1,3209.7,5.40252]
[1720936764859,1.0791945,3210.2,3209.8,3.11543]
[1720936765060,0.785,3210.3,3209.8,3.11543]
[1720936765061,1.0791945,3210.1,3209.8,3.11543]
[1720936765284,0.785,3210.3,3209.8,3.11543]
[1720936765285,1.0791945,3210.0,3209.8,3.11543]
[1720936765507,1.0791945,3209.9,3209.8,3.11543]
[1720936766255,0.785,3210.3,3209.7,2.287]
[1720936766449,0.785,3210.3,3209.3,10.53584]
[1720936766450,0.785,3209.9,3209.4,5.42657]
[1720936766649,1.07922227,3209.8,3209.4,5.42657]
[1720936766849,1.07922227,3209.8,3209.4,2.3108]
[1720936767056,1.07922227,3209.8,3209.3,7.42]
[1720936767057,0.785,3209.7,3209.3,7.42]
[1720936767289,1.07922227,3209.6,3209.3,7.42]
[1720936767799,1.07922227,3209.6,3209.2,3.11603]
[1720936768447,0.785,3209.7,3209.2,3.11603]
[1720936768642,1.07922227,3209.6,3209.2,3.11603]
[1720936769618,1.07938831,3209.5,3209.2,3.11603]
[1720936769753,1.07938831,3209.4,3209.2,3.11603]
[1720936770090,1.07938831,3209.3,3209.2,3.11603]
[1720936772206,1.07938831,3209.3,3208.9,2.3108]
[1720936772509,1.07938831,3209.2,3208.9,2.3108]
[1720936772817,1.07938831,3209.5,3208.9,2.3108]
[1720936773106,1.07945758,3209.4,3208.9,2.3108]
[1720936773277,1.07945758,3209.3,3208.9,2.3108]
[1720936773475,1.07945541,3209.2,3208.9,2.3108]
[1720936773709,4.6023,3209.6,3208.9,2.3108]
[1720936773886,1.851255,3209.5,3208.9,2.3108]
[1720936774206,1.079462,3209.4,3208.9,2.3108]
[1720936774427,1.079462,3209.3,3208.9,5.42711]
[1720936774710,1.079462,3209.2,3208.9,5.42711]
[1720936775003,0.785,3209.6,3208.9,5.42711]
[1720936775165,1.07942714,3209.5,3208.9,5.42711]
[1720936775367,1.07942714,3209.4,3208.9,5.42711]
[1720936775576,1.07942714,3209.3,3208.9,5.42711]
[1720936775782,1.07942714,3209.5,3208.9,7.02347]
[1720936775981,1.07942714,3209.4,3208.9,7.02347]
[1720936776217,1.07944443,3209.3,3208.9,7.02347]
[1720936776384,1.5146,3210.5,3209.6,3.11557]
[1720936776583,1.07927158,3210.4,3209.8,2.3108]
[1720936776790,1.07927158,3210.3,3209.8,2.3108]
[1720936777000,1.07927158,3210.2,3209.8,2.3108]
[1720936777200,1.07927158,3210.1,3209.8,5.42625]
[1720936777423,1.07927158,3210.0,3209.8,5.42625]
[1720936777591,1.07927158,3209.9,3209.8,5.42625]
[1720936777920,1.07927158,3209.9,3209.8,6.280438]
[1720936779530,1.07920263,3209.9,3209.8,5.42625]
[1720936781330,1.07920263,3209.9,3209.8,2.3108]
[1720936782239,1.07920263,3209.9,3209.8,5.42625]
[1720936782735,0.785,3210.3,3209.8,5.42625]
[1720936782935,1.07925595,3209.9,3209.8,5.42625]
[1720936784217,1.07925595,3209.9,3209.8,6.280438]
[1720936786216,1.07920227,3209.9,3209.8,6.280438]
[1720936786619,3.89979,3210.5,3209.8,6.280438]
[1720936786838,1.07920188,3209.9,3209.8,5.42625]
[1720936787161,1.07920188,3210.4,3209.8,5.42625]
[1720936787472,1.07920188,3210.3,3209.8,5.42625]
[1720936787633,1.07920188,3210.2,3209.9,3.11535]
[1720936787837,1.07920188,3210.1,3209.9,3.11535]
[1720936788028,1.07920188,3210.0,3209.9,3.11535]
[1720936789451,1.07920721,3210.0,3209.9,3.11535]
[1720936789652,1.07920721,3210.4,3209.9,3.11535]
[1720936789830,1.07920721,3210.3,3209.9,3.11535]
[1720936790027,1.04004874,3210.2,3209.9,3.11535]
[1720936790355,0.785,3210.5,3209.9,3.11535]
[1720936790656,0.32628783,3210.7,3210.0,5.56617]
[1720936790865,0.32628783,3210.7,3210.2,3.11506]
[1720936791158,0.32628783,3210.7,3210.3,2.451]
[1720936791519,0.785,3210.6,3210.3,2.451]
[1720936798429,0.32628783,3210.7,3210.3,5.56589]
[1720936798626,0.785,3210.6,3210.3,5.56589]
[1720936800241,1.06891042,3210.5,3210.3,5.56589]
[1720936800445,0.785,3210.6,3210.3,2.451]
[1720936801935,0.785,3210.6,3210.3,5.56596]
[1720936802137,0.785,3210.6,3210.4,3.11487]
[1720936803082,0.32628783,3210.7,3210.4,3.11487]
[1720936804068,0.32628783,3210.7,3210.4,3.982963]
[1720936804271,0.32628783,3210.7,3210.5,3.11477]
[1720936805247,0.32628783,3210.7,3210.6,2.4647]
[1720936805476,0.32628783,3210.7,3210.6,5.57938]
[1720936805665,0.785,3211.0,3210.6,2.4647]
[1720936806033,0.785,3210.9,3210.7,3.1145]
[1720936806867,0.32625932,3211.2,3210.8,3.11448]
[1720936806868,0.785,3211.1,3210.8,3.11448]
[1720936808353,0.785,3210.9,3210.8,3.11448]
[1720936808982,0.785,3210.9,3210.6,5.57933]
[1720936809457,0.785,3210.9,3210.6,2.4647]
[1720936809656,0.785,3210.7,3210.4,5.57955]
[1720936810187,1.07901657,3210.6,3210.4,2.4647]
[1720936810394,1.07901657,3210.5,3210.4,2.4647]
[1720936810567,0.785,3210.5,3210.1,5.57984]
[1720936810774,1.07901657,3210.4,3210.1,5.57984]
[1720936811188,0.785,3210.3,3209.6,5.4647]
[1720936811372,1.07901657,3210.2,3209.6,6.438371]
[1720936811691,0.785,3210.3,3209.6,6.438371]
[1720936811869,1.07918475,3210.1,3209.6,6.438371]
[1720936812072,1.07918475,3210.0,3209.6,6.438371]
[1720936812392,1.07917162,3209.9,3209.7,0.9438371]
[1720936812604,1.07917162,3209.8,3209.7,0.9438371]
[1720936812801,0.785,3210.1,3209.6,2.4647]
[1720936812959,1.07917162,3210.0,3209.6,2.4647]
[1720936813990,1.07917162,3210.0,3209.6,5.5803]
[1720936814325,0.785,3210.5,3209.9,3.11536]
[1720936814473,1.07920208,3210.4,3209.9,3.11536]
[1720936814674,1.07920208,3210.3,3209.9,3.11536]
[1720936814920,1.174969,3210.5,3209.9,3.11536]
[1720936814921,1.07920208,3210.2,3209.9,3.11536]
[1720936815090,1.07921464,3210.2,3209.9,3.11536]
[1720936815411,1.07921464,3210.1,3210.0,5.57995]
[1720936816428,1.07921464,3210.1,3210.0,8.69521]
[1720936816611,3.11412,3211.2,3210.4,3.1148]
[1720936816821,1.86400449,3211.1,3210.5,2.4647]
[1720936816991,1.07900449,3211.0,3210.5,2.4647]
[1720936817185,1.07900449,3210.9,3210.5,2.4647]
[1720936817386,1.07900449,3210.8,3210.5,3.02265]
[1720936817582,1.07900449,3210.7,3210.6,3.1146]
[1720936818087,0.785,3211.1,3210.6,3.1146]
[1720936818289,1.07895284,3211.0,3210.7,3.11449]
[1720936818520,0.785,3211.1,3210.7,3.11449]
[1720936818732,1.07895401,3210.9,3210.7,3.11449]
[1720936819033,1.07895401,3210.8,3210.7,3.11449]
[1720936819211,1.07895401,3210.8,3210.7,4.039664]
[1720936820018,0.785,3211.1,3210.8,3.11447]
[1720936820325,1.07893629,3211.0,3210.8,3.11447]
[1720936820491,1.07893629,3210.9,3210.8,3.11447]
[1720936821487,0.785,3211.1,3210.8,3.11447]
[1720936821803,1.07893003,3211.0,3210.8,3.11447]
[1720936822011,1.07893003,3210.9,3210.8,3.11447]
[1720936822327,1.07893003,3210.9,3210.7,4.039744]
[1720936822485,1.07893003,3211.0,3210.7,4.039744]
[1720936823323,1.07893003,3211.0,3210.8,3.11447]
[1720936824735,0.785,3211.1,3210.8,3.11447]
[1720936824940,1.07894649,3211.0,3210.8,3.11447]
[1720936825103,1.07894649,3210.9,3210.8,3.11447]
[1720936825300,0.785,3211.1,3210.9,3.11437]
[1720936825534,1.07891959,3211.0,3210.9,5.42757]
[1720936826714,1.07891959,3211.0,3210.9,8.54196]
[1720936828143,1.11128593,3211.4,3211.0,3.11421]
[1720936828352,1.07884039,3211.3,3211.1,3.11418]
[1720936828535,1.11128593,3211.4,3211.1,3.11418]
[1720936828536,1.07884039,3211.2,3211.1,3.11418]
[1720936828720,1.07884039,3211.3,3211.1,3.11418]
[1720936831339,1.11128593,3211.4,3211.1,3.11418]
[1720936831562,1.0788169,3211.3,3211.1,3.11418]
[1720936831767,1.0788169,3211.2,3211.1,3.11418]
[1720936832077,1.0788169,3211.2,3211.1,3.968355]
[1720936833677,1.0788169,3211.2,3211.1,6.281555]
[1720936834274,1.0788169,3211.2,3211.1,5.42738]
[1720936834653,0.32628593,3211.4,3211.2,3.11404]
[1720936834976,1.0787567,3211.3,3211.2,3.11404]
[1720936836283,1.0787567,3211.3,3211.2,5.42724]
[1720936837991,0.32628593,3211.4,3211.3,3.114]
[1720936838795,1.40504433,3211.4,3211.3,3.114]
[1720936841179,1.40497157,3211.4,3211.3,3.114]
[1720936841505,1.40497041,3211.4,3211.3,3.114]
[1720936842860,1.40497041,3211.4,3211.3,3.968139]
[1720936843561,1.40497041,3211.4,3211.3,3.114]
[1720936844579,1.40499205,3211.4,3211.3,3.114]
[1720936847910,1.40500675,3211.4,3211.2,2.3132]
[1720936848211,1.07872082,3211.3,3211.1,3.11412]
[1720936848981,1.07872082,3211.3,3211.0,2.4118]
[1720936849188,0.785,3211.2,3210.8,2.4118]
[1720936849407,1.07872082,3211.1,3210.8,2.4118]
[1720936850903,0.32628593,3211.4,3210.8,5.52625]
[1720936851111,1.07888465,3211.0,3210.9,1.606081]
[1720936851278,1.07888465,3211.0,3210.9,3.11439]
[1720936851476,1.07880355,3211.0,3210.9,3.11439]
[1720936852606,0.32628593,3211.4,3211.3,3.114]
[1720936853485,1.40499147,3211.4,3211.3,3.114]
[1720936854217,1.40498595,3211.4,3211.3,5.5258]
[1720936854423,1.40498595,3211.4,3211.3,6.389799]
[1720936854625,1.40497535,3211.4,3211.3,6.389799]
[1720936854988,0.32628593,3211.4,3211.3,13.288799]
[1720936855396,0.1158582,3211.7,3211.6,6.22742]
[1720936855596,0.1158582,3211.7,3211.6,8.63922]
[1720936855797,0.1158582,3211.7,3211.6,9.581642]
[1720936856018,0.1158582,3211.7,3211.6,12.581642]
[1720936857799,0.1158582,3211.7,3211.6,15.695352]
[1720936859251,0.1158582,3211.7,3211.6,19.359062]
[1720936859528,0.32623678,3212.7,3211.6,19.359062]
[1720936859836,0.785,3213.5,3211.6,19.359062]
[1720936859837,0.785,3213.5,3213.0,3.11234]
[1720936860006,1.40433479,3213.4,3213.0,3.11234]
[1720936860331,1.07819368,3213.3,3213.0,3.11234]
[1720936860487,0.32614111,3213.4,3213.0,3.11234]
[1720936860694,1.07817801,3213.3,3213.0,3.11234]
[1720936860889,1.07817801,3213.2,3213.0,3.11234]
[1720936861093,1.07817801,3213.3,3213.0,3.11234]
[1720936862494,1.07817801,3213.3,3212.7,2.4118]
[1720936862495,1.07817801,3213.3,3213.1,3.11225]
[1720936862910,1.07817801,3213.3,3213.0,3.11234]
[1720936863230,0.32614111,3213.4,3212.7,3.11263]
[1720936863231,1.07817791,3213.2,3212.7,3.11263]
[1720936863435,2.15636361,3213.2,3212.8,3.11254]
[1720936863929,1.0782032,3213.1,3212.8,3.11254]
[1720936864129,2.48250065,3213.2,3212.8,3.11254]
[1720936864495,2.15636361,3213.2,3212.9,3.11242]
[1720936864718,2.15636361,3213.2,3213.1,3.11225]
[1720936867044,2.15636361,3213.2,3213.1,6.2245]
[1720936870045,2.15636361,3213.2,3213.1,3.11225]
[1720936870366,2.15636361,3213.2,3212.5,3.11277]
[1720936870526,2.15636361,3213.2,3212.6,3.11265]
[1720936870849,1.5146,3213.4,3212.7,3.11262]
[1720936871050,2.476339,3213.4,3212.7,3.11262]
[1720936871253,1.07822616,3213.3,3212.7,3.11262]
[1720936871439,5.588309,3213.4,3212.7,3.11262]
[1720936871954,2.476339,3213.4,3212.8,3.11254]
[1720936872120,0.961739,3213.4,3212.8,3.11254]
[1720936872557,3.11188,3213.5,3212.6,3.11267]